Cogmind - Beta 14 @@@ ROGUE MODE // 2025.04.23 @ 04:32:58 Player: VT-MNC Result: Escaped! Performance ------------- Evolutions (9) 4500 Regions Visited (28) 5600 Robots Destroyed (577) 2885 Value Destroyed (28588) 28588 Prototype IDs (292) 5840 Alien Tech Used (5) 1000 Bonus (36713) 36713 TOTAL SCORE: 85126 Bonus ------- Triggered High Security 500 High Alert Combat Kills 8423 Follower Combat Kills 2544 Awakened Behemoth Slayer 1000 Network Hubs Disabled 200 Registered with UFD 300 Met Imprinter 300 Met Zhirov 300 Built Enhanced Grunts 300 A7 Reached Mainframe 300 Met R17 at Cetus 500 Met R17 at Research 2000 Acquired SGEMP 2000 Delivered SGEMP 2000 Destroyed MAIN.C Guards 500 Met MAIN.C 5000 Hacked MAIN.C 300 Destroyed MAIN.C Shell 5000 Zhirov Destroyed MAIN.C 3000 Win 3000 Friendly Fire -754 Cogmind --------- Core Integrity 1312/1600 Matter 186/300 Energy 681/700 System Corruption 15% Temperature Cool (28) Movement Treading (173) Location To Epsilon Eridani Parts ------- > --- POWER (3) -------- Vortex Chain Reactor > --- PROPULSION (6) --- Improved Heavy Siege Treads Improved Heavy Siege Treads Advanced Heavy Siege Treads > --- UTILITY (12) ----- Experimental Cooling System Huge Storage Unit Experimental Targeting Computer Heavy Regenerative Plating (fused) Heavy Regenerative Plating Graphene Brace > --- WEAPON (4) ------- Omega Cannon Ragnarok Missile Launcher > --- INVENTORY (25) --- Zero-point Reactor Vortex Chain Reactor Experimental Energy Well (600) Experimental Sensor Array Experimental Target Analyzer Precision Energy Filter Advanced Particle Charger Advanced Weapon Cycler Experimental Force Field Experimental Force Field Improved Hacking Suite Compact HERF Cannon Enhanced Nova Cannon Advanced KE Penetrator Hypervelocity Railgun Hypervelocity Mass Driver Graviton Cannon Graviton Cannon Tactical Quantum Warhead Experimental Remote Datajack Core Stripper CR-A16's Behemoth Slayer Peak State ------------ > --- POWER ------------ Graviton Reactor Light Quantum Reactor Improved Quantum Reactor > --- PROPULSION ------- Centrium Heavy Treads Centrium Heavy Treads Advanced Heavy Siege Treads > --- UTILITY ---------- Experimental Cooling System Huge Storage Unit Experimental Optical Array Experimental Sensor Array Advanced Signal Interpreter Experimental Targeting Computer Advanced Particle Charger Advanced Weapon Cycler Phase Armor Experimental Force Field Improved Hacking Suite > --- WEAPON ----------- Advanced KE Penetrator Hypervelocity Railgun Core Stripper > --- INVENTORY -------- Centrium Heavy Treads Experimental Energy Well Deep Structural Scanner Experimental Target Analyzer Precision Energy Filter Quantum Capacitor Centrium Heavy Armor Plating Advanced Force Field Antimissile System Transdimensional Reconstructor Enhanced Nova Cannon Potential Cannon Advanced KE Penetrator Hypervelocity Railgun Hypervelocity Mass Driver Graviton Cannon Tactical Quantum Warhead CR-A16's Behemoth Slayer [Rating: 239] Favorites ----------- Power Quantum Reactor Engine Heavy Ion Engine Power Core Fission Core Reactor Quantum Reactor Propulsion Light Treads Treads Light Treads Leg Carbon-fiber Leg Wheel Wheel Hover Unit Improved Hover Unit Flight Unit Xenon Bombardment Thruster Utility Huge Storage Unit Device Experimental Sensor Array Storage Huge Storage Unit Processor Advanced Targeting Computer Hackware Improved Hacking Suite Protection Centrium Medium Armor Plating Artifact Phase Armor Weapon Advanced KE Penetrator Energy Gun Improved Medium Laser Energy Cannon Ion Burst Cannon Ballistic Gun Advanced KE Penetrator Ballistic Cannon Light Cannon Launcher Long-range Missile Launcher Special Weapon Improved Remote Datajack Impact Weapon Core Stripper Slashing Weapon Scythe Piercing Weapon CR-A16's Behemoth Slayer Build | -11 -10 -9 -9 -9 -9 -6 -6 -6 -6 -5 -5 -5 -5 -5 -4 -4 -4 -4 -4 -4 -3 -3 -2 -2 -2 -1 -1 -1 ------- Run | Yrd Mat Mat Sto Rec Scr Fac Low Low Zio Pro Fac Upp Upp Zhi Pro Fac Ext Cet Arc Hub Res Tes Res Qua Sec Acc Com Ac0 Slots Evolved 18 | . . 2 . . . 6 . . . . 2 . . . . 2 . . . . 2 . 2 . . 2 . . Power 2 | . . . . . . 1 . . . . . . . . . . . . . . . . . . . 1 . . Propulsion 4 | . . 1 . . . 3 . . . . . . . . . . . . . . . . . . . . . . Utility 10 | . . 1 . . . 2 . . . . 1 . . . . 2 . . . . 2 . 1 . . 1 . . Weapon 2 | . . . . . . . . . . . 1 . . . . . . . . . . . 1 . . . . . Parts Attached 932 | 3 23 62 40 23 30 68 14 14 3 1 73 11 9 6 11 20 55 18 8 19 76 90 44 106 50 13 42 . Power 45 | . 6 2 1 . 3 2 . 1 . . 6 . . 1 . 2 2 2 . . 4 1 1 4 1 1 5 . Engine 17 | . 6 2 1 . 3 1 . 1 . . 2 . . . . 1 . . . . . . . . . . . . Core 6 | . . . . . . 1 . . . . 4 . . . . 1 . . . . . . . . . . . . Reactor 22 | . . . . . . . . . . . . . . 1 . . 2 2 . . 4 1 1 4 1 1 5 . Propulsion 135 | 2 4 12 9 6 8 12 3 3 . . 17 1 . . 1 7 22 3 . . 5 3 . 9 1 1 6 . Treads 94 | 2 4 12 9 5 4 10 1 1 . . 3 . . . . . 15 3 . . 5 3 . 9 1 1 6 . Leg 29 | . . . . . 1 2 2 2 . . 14 1 . . 1 1 5 . . . . . . . . . . . Wheel 9 | . . . . 1 . . . . . . . . . . . 6 2 . . . . . . . . . . . Hover 1 | . . . . . 1 . . . . . . . . . . . . . . . . . . . . . . . Flight 2 | . . . . . 2 . . . . . . . . . . . . . . . . . . . . . . . Utility 429 | 1 4 17 15 8 13 38 6 4 2 . 34 8 5 1 7 7 14 2 8 13 43 55 22 59 25 6 12 . Device 329 | 1 3 12 12 7 4 26 4 4 2 . 24 7 5 1 6 5 11 . 8 9 28 46 20 48 22 6 8 . Storage 7 | . 1 2 . . 1 . . . . . . . . . . . . . . . . 1 . 1 1 . . . Processor 12 | . . . . 1 3 2 1 . . . 1 . . . . 1 . . . . . 2 1 . . . . . Hackware 11 | . . . . . . 2 . . . . 1 . . . . . 2 . . 2 3 1 . . . . . . Protection 67 | . . 3 3 . 5 8 1 . . . 8 1 . . 1 1 1 2 . 2 12 5 1 8 1 . 4 . Artifact 3 | . . . . . . . . . . . . . . . . . . . . . . . . 2 1 . . . Weapon 323 | . 9 31 15 9 6 16 5 6 1 1 16 2 4 4 3 4 17 11 . 6 24 31 21 34 23 5 19 . Energy Gun 22 | . 4 3 1 . . 1 . 1 . . 1 . . . . . . 2 . . 1 4 3 1 . . . . Energy Cannon 93 | . . 2 7 3 3 12 2 4 . 1 5 . . 1 . 1 2 . . 2 6 8 6 13 9 2 4 . Ballistic Gun 108 | . 3 6 . . . . . 1 . . 1 . 2 1 . 1 4 9 . 4 14 16 11 17 11 2 5 . Ballistic Cannon 36 | . 1 12 2 . 1 . . . . . 4 1 1 1 1 . 4 . . . 1 1 1 1 1 . 3 . Launcher 35 | . . 7 5 . 1 2 1 . . . 5 1 1 . 1 2 3 . . . 1 2 . . 1 . 2 . Special Weapon 9 | . 1 . . . . . 2 . . . . . . . . . 4 . . . . . . . . . 2 . Impact Weapon 5 | . . . . . . . . . . . . . . . . . . . . . . . . 2 . 1 2 . Slashing Weapon 9 | . . 1 . 6 1 1 . . . . . . . . . . . . . . . . . . . . . . Piercing Weapon 6 | . . . . . . . . . 1 . . . . 1 1 . . . . . 1 . . . 1 . 1 . Special Melee Weapon . | . . . . . . . . . . . . . . . . . . . . . . . . . . . . . Unidentified Prototypes 55 | . 2 4 2 . 1 2 . . . . 1 . . 2 . . . 3 . 3 5 13 1 11 1 . 4 . Corrupted Parts 10 | . . . . . . 1 . . . . 1 . . . . . 2 3 . 1 2 . . . . . . . System Corruption 47 | . . . . . . 3 . . . . 10 . . . . . 5 18 . 6 5 . . . . . . . Parts Lost 47 | . 1 . . . . 6 1 . . . 11 . . . 6 5 1 . . 1 1 4 . . . . 10 . Power 4 | . . . . . . . . . . . 2 . . . . . . . . . . 1 . . . . 1 . Propulsion 19 | . . . . . . 5 1 . . . 4 . . . 4 3 1 . . . . . . . . . 1 . Utility 16 | . . . . . . 1 . . . . 3 . . . 2 1 . . . . 1 2 . . . . 6 . Weapon 8 | . 1 . . . . . . . . . 2 . . . . 1 . . . 1 . 1 . . . . 2 . Highest Loss Streak 4 | . 1 . . . . 2 1 . . . 4 . . . 4 3 1 . . 1 1 2 . . . . 4 . To Critical Strikes . | . . . . . . . . . . . . . . . . . . . . . . . . . . . . . Average Slot Usage (%) 89 | . 99 99 100 99 90 96 92 92 93 93 94 99 99 89 95 81 93 87 83 84 84 83 85 83 80 79 68 48 Engine 5 | . 14 11 11 11 10 11 6 6 6 6 5 5 5 5 5 2 . . . . . . . . . . . . Core 1 | . . . . . . 1 6 6 6 6 4 5 5 3 . . . . . . . . . . . . . . Reactor 4 | . . . . . . . . . . . . . . 1 5 5 9 9 10 10 8 8 8 7 8 11 9 4 Treads 18 | . 27 32 33 32 27 37 21 18 6 6 3 . . . . . 22 20 15 15 14 13 13 12 13 12 10 12 Leg 6 | . . . . . . 1 18 21 33 33 29 34 35 35 31 9 1 . . . . . . . . . . . Device 12 | . 14 12 11 11 7 8 6 6 6 6 12 17 17 17 15 16 12 10 14 14 16 15 17 16 16 18 15 8 Storage 6 | . 14 11 11 11 9 6 6 6 6 6 5 5 5 5 5 5 5 5 5 5 4 4 4 4 4 4 4 4 Processor 6 | . . . . . 2 6 6 6 6 6 5 5 5 5 5 8 10 10 10 10 9 10 12 13 13 12 8 4 Hackware 1 | . . . . . . 3 . . . . . . . . . . 3 5 . 9 7 5 4 4 4 4 . . Protection 6 | . . 9 10 11 9 3 5 6 6 6 4 5 5 5 4 4 5 9 10 1 7 9 8 6 . . 6 8 Energy Cannon 6 | . . 1 11 17 17 12 7 12 9 6 8 5 5 1 3 1 4 . . 3 . 1 2 3 2 5 3 . Ballistic Gun 4 | . 10 1 . . . . . . . . 1 5 3 . 1 2 1 12 15 11 12 10 12 11 11 7 5 . Ballistic Cannon 2 | . . 17 8 . . . . . . . 4 4 4 . 6 8 5 . . . . . . . . . 2 4 Peak Build Rating 239 | 8 16 21 27 28 39 58 64 69 69 69 82 81 82 86 89 91 102 154 156 156 179 190 205 223 220 239 237 182 Average Rating 102 | 6 12 16 22 26 26 50 57 59 67 68 74 77 80 73 83 80 95 137 154 150 168 179 199 201 214 225 217 182 On Entrance 100 | 6 8 14 20 26 26 35 54 56 69 68 69 78 81 82 86 76 81 98 154 156 153 179 190 205 217 213 228 183 Naked Turns 75 | . . . . . 75 . . . . . . . . . . . . . . . . . . . . . . . Heaviest Build 231 | 12 25 101 107 107 107 136 137 138 138 138 150 134 134 146 155 155 169 159 159 160 179 189 185 215 215 231 225 194 Greatest Support 260 | 40 40 60 63 69 69 126 80 86 86 86 96 90 90 90 90 72 138 240 240 240 240 240 240 260 240 240 245 230 Greatest Overweight (x) 12 | . 1 2 1 1 2 9 2 2 1 1 2 1 1 1 3 12 6 1 . . 1 1 . 1 . 1 1 . Average Overweight (x) . | . . . 1 1 . . 1 1 1 1 1 1 1 1 1 2 1 . . . . . . . . . . . Largest Inventory Capacity 25 | 8 10 25 25 25 25 25 25 25 25 25 25 25 25 25 25 25 25 25 25 25 25 25 25 25 25 25 25 25 Average Capacity 23 | 8 9 23 25 25 21 25 25 25 25 25 25 25 25 25 25 25 25 25 25 25 25 25 25 25 25 25 25 25 Most Carried 25 | 8 10 25 25 25 25 25 25 25 25 25 25 25 25 25 25 25 25 25 25 25 25 25 25 25 25 25 25 24 Average Carried 23 | 6 9 22 24 24 21 23 24 24 24 24 23 24 24 24 24 23 24 24 24 24 24 24 24 24 24 23 24 24 Final Capacity 25 | 8 10 25 25 25 25 25 25 25 25 25 25 25 25 25 25 25 25 25 25 25 25 25 25 25 25 25 25 25 Final Carried 25 | 8 10 25 25 25 25 25 25 25 25 25 23 25 25 25 25 24 25 25 24 25 25 25 25 25 25 24 25 24 Class Distribution -------------------- 36% | Mutant 20% | Scavenger-Tank 11% | Gunner 8% | Scavenger-Mutant 8% | Scavenger-Skirmisher 7% | Scavenger-Gunner 3% | Derelict-Mutant Dominant Class ---------------- Mutant | -10/Materials Mutant | -9/Materials Mutant | -9/Storage Mutant | -9/Recycling Mutant | -9/Scraptown Scavenger-Mutant | -6/Factory Mutant | -6/Lower Caves Mutant | -6/Lower Caves Derelict-Mutant | -6/Zion Mutant | -5/Proximity Caves Scavenger-Gunner | -5/Factory Scavenger-Gunner | -5/Upper Caves Scavenger-Skirmisher | -5/Upper Caves Scavenger-Mutant | -5/Zhirov Scavenger-Skirmisher | -4/Proximity Caves Scavenger-Skirmisher | -4/Factory Scavenger-Gunner | -4/Extension Scavenger-Tank | -4/Cetus Scavenger-Tank | -4/Archives Scavenger-Skirmisher | -4/Hub_04(d) Scavenger-Tank | -3/Research Scavenger-Tank | -3/Testing Scavenger-Tank | -2/Research Scavenger-Tank | -2/Quarantine Skirmisher | -2/Section 7 Gunner | -1/Access Gunner | -1/Command Gunner | -1/Access_0 Resources | -11 -10 -9 -9 -9 -9 -6 -6 -6 -6 -5 -5 -5 -5 -5 -4 -4 -4 -4 -4 -4 -3 -3 -2 -2 -2 -1 -1 -1 ----------- Run | Yrd Mat Mat Sto Rec Scr Fac Low Low Zio Pro Fac Upp Upp Zhi Pro Fac Ext Cet Arc Hub Res Tes Res Qua Sec Acc Com Ac0 Matter Collected 22066 | 249 371 1866 1013 309 223 882 130 124 64 10 1299 464 267 50 328 571 1531 449 376 511 1250 2868 1149 2112 1866 234 1500 . Remotely . | . . . . . . . . . . . . . . . . . . . . . . . . . . . . . Salvage Created 30553 | 120 762 1966 1536 670 . 1474 254 36 203 . 1783 187 124 105 346 592 1251 343 494 617 1013 3957 1840 3999 3947 527 2407 . Parts 1415 | 7 59 121 97 36 . 52 8 2 4 . 74 8 1 1 14 34 43 19 30 29 51 223 107 140 158 19 78 . Haulers Intercepted 18 | . 2 6 6 . . . . . . . . . . . . . . . . . 3 1 . . . . . . Recyclers Shooed 22 | . 2 4 1 1 . 1 . . . . 4 . . . . 5 1 . . . . 1 1 1 . . . . Parts Field Recycled . | . . . . . . . . . . . . . . . . . . . . . . . . . . . . . Retrieved Matter . | . . . . . . . . . . . . . . . . . . . . . . . . . . . . . Parts Self-Destructed 25 | . . . . . . . 7 . 4 . . 3 1 . 10 . . . . . . . . . . . . . Prevented 3 | . . . . . . . 1 . . 2 . . . . . . . . . . . . . . . . . . Kills | -11 -10 -9 -9 -9 -9 -6 -6 -6 -6 -5 -5 -5 -5 -5 -4 -4 -4 -4 -4 -4 -3 -3 -2 -2 -2 -1 -1 -1 ------- Run | Yrd Mat Mat Sto Rec Scr Fac Low Low Zio Pro Fac Upp Upp Zhi Pro Fac Ext Cet Arc Hub Res Tes Res Qua Sec Acc Com Ac0 Combat Hostiles Destroyed 407 | . 17 38 40 4 . 26 4 . . . 27 6 1 . 10 16 10 5 2 9 13 48 23 45 43 8 12 . Guns 159 | . 17 . . . . 1 . . . . 2 . . . . 2 2 5 2 9 12 35 20 17 29 1 5 . Cannons 147 | . . 23 27 4 . 23 4 . . . 20 2 1 . 3 5 6 . . . . 6 2 12 3 3 3 . AOE 80 | . . 14 13 . . 2 . . . . 1 4 . . 5 9 2 . . . . 6 1 12 9 2 . . Classes Destroyed 28 | 2 7 4 1 1 . 1 2 1 . . . . . . 1 1 . . . . . 3 . 3 . 1 . . Worker 32 | . 4 1 3 . . 1 . . . . . . . . . 2 1 . . . . 8 3 6 3 . . . Builder 26 | . 1 2 2 3 . 1 . . . . 1 . . . . 1 1 . . . . 8 2 3 . 1 . . Tunneler 7 | 2 . 2 . . . . . . . . 1 . . . . . 2 . . . . . . . . . . . Hauler 18 | . 2 6 6 . . . . . . . . . . . . . . . . . 3 1 . . . . . . Recycler 33 | 1 . 8 1 4 . 2 . . . . 4 . . . . 1 5 . . . . 2 . 2 2 . 1 . Carrier 4 | . . . . . . . . . . . . . . . . . . . . . . . . 2 2 . . . Mechanic 5 | . . 1 1 . . . . . . . . . . . . . . . . . . . . 2 1 . . . Operator 20 | . 4 2 . . . . . . . . . . . . . . . . 9 1 . . 1 2 . . 1 . Watcher 22 | . 3 4 1 . . 1 . . . . 1 . . . . . . . . . . 3 2 3 3 . 1 . Swarmer 64 | . 9 4 4 . . 3 1 . . . . 5 . . 5 9 . . . . 8 3 3 5 5 . . . Saboteur 1 | . . . . . . . . . . . . . . . . . . . . . . . . 1 . . . . Grunt 133 | . 8 21 22 . . 12 . . . . 13 . . . 3 . 4 . . 4 1 14 2 11 18 . . . Brawler 17 | . . 4 2 . . . . . . . . . . . 1 . . . . . . . 1 4 5 . . . Duelist 7 | . . 1 1 . . 1 . . . . . . . . . . . . . . . 1 1 1 1 . . . Protector 3 | . . . 2 . . . . . . . . . . . . . . . . . . . . 1 . . . . Researcher 2 | . . . . . . . . . . . . . . . . . . . . . . 1 . 1 . . . . Sentry 55 | . . 8 9 3 . 5 1 . . . 3 1 . . . 1 4 . 2 3 3 . 5 1 5 1 . . Demolisher 1 | . . . . 1 . . . . . . . . . . . . . . . . . . . . . . . . Specialist 11 | . . . . . . . . . . . . . . . . 2 . . . . . 6 . 1 . 2 . . Hunter 27 | . . . . . . . 2 . . . 4 . 1 . . . 2 . . . . 6 2 7 2 1 . . Programmer 68 | . . . . . . 5 . . . . 7 . . . . 4 . . . 2 . 14 9 11 6 3 7 . Heavy 1 | . . . . . . . . . . . . . . . . . . . . . . . . . . 1 . . Behemoth 3 | . . . . . . . . . . . . . . . 1 . . . . . 1 . . . 1 . . . Cetus Guard 5 | . . . . . . . . . . . . . . . . . . 5 . . . . . . . . . . M Guard 2 | . . . . . . . . . . . . . . . . . . . . . . . . . . . 2 . Combat Programmer 2 | . . . . . . . . . . . . . . . . . . . . . . . . . . . 2 . Striker 2 | . . . . . . . . . . . . . . . . . . . . . . 2 . . . . . . Alpha 7 2 | . . . . . . . . . . . . . . . . . . . . . . 1 . 1 . . . . Fortress 1 | . . . . . . . . . . . . . . . . . . . . . . . . 1 . . . . Protovariant P 1 | . . . . . . . . . . . . . . . . . . . . . . 1 . . . . . . Decomposer 2 | . . . . . . . . . . . . 2 . . . . . . . . . . . . . . . . Packrat 1 | . . . . . . . . . . . . . 1 . . . . . . . . . . . . . . . Samaritan 1 | . . . . . . . . 1 . . . . . . . . . . . . . . . . . . . . Mutant 1 | . . . . . . . 1 . . . . . . . . . . . . . . . . . . . . . Best Kill Streak 16 | 1 4 8 10 4 . 6 2 . . . 8 5 1 . 5 10 7 3 4 3 4 14 7 16 8 3 4 . Combat Bots Only 13 | . 3 4 9 1 . 5 2 . . . 5 5 1 . 5 9 2 3 2 3 4 8 6 13 7 3 3 . Max Kills in Single Turn 5 | 1 1 4 5 2 . 3 1 1 . . 1 4 1 . 4 4 5 1 2 1 2 3 3 5 3 2 2 . Gunslinging 1 | . . . . . . . . . . . . . . . . . . . . . . 1 1 1 1 . 1 . Exploded 5 | . . 3 5 . . 1 . . . . 1 4 . . 4 3 1 . . . . 2 1 3 2 1 . . Melee . | . . . . . . . . . . . . . . . . . . . . . . . . . . . . . Uniques/NPCs Destroyed 1 | . . . . . . . . . . . . . . . . . . . . . . . . . . . 1 . MAIN.C Shell (-1/Command) Combat | -11 -10 -9 -9 -9 -9 -6 -6 -6 -6 -5 -5 -5 -5 -5 -4 -4 -4 -4 -4 -4 -3 -3 -2 -2 -2 -1 -1 -1 -------- Run | Yrd Mat Mat Sto Rec Scr Fac Low Low Zio Pro Fac Upp Upp Zhi Pro Fac Ext Cet Arc Hub Res Tes Res Qua Sec Acc Com Ac0 Hostile Shots Fired 1998 | . 103 103 108 5 . 240 43 . . . 203 14 24 . 60 91 73 34 3 47 58 318 72 94 108 36 161 . Missed 506 | . 19 22 26 1 . 78 20 . . . 61 3 4 . 23 23 22 10 2 12 14 63 14 17 26 8 38 . Damage Taken 24799 | . 857 954 868 128 . 2048 332 . . . 2874 216 239 . 560 1056 943 599 40 800 628 3681 628 1421 1001 500 4426 . Core 1916 | . 170 78 61 . . 158 13 . . . 613 32 . . 37 77 56 26 . 21 11 180 28 17 176 27 135 . Absorbed by Shields 6140 | . . 181 204 . . 76 . . . . . . 54 . 76 113 130 148 14 . 526 1580 566 459 924 267 822 . Reduced by Siege Mode 952 | . . . . . . . . . . . . . . . . . . 7 . 90 24 279 49 137 143 43 180 . Redirected to Core 187 | . . . . . . . . . . . . . . . . . . . . . . . . . 176 11 . . Ignored by Resistances 657 | . . . . . . 15 . . . . 219 . . . . 44 . . . . . 122 195 62 . . . . Regen/Repaired (Parts) 5869 | . 92 95 . . . 198 . . . . . . . . . . . . . . . 287 . 2063 1110 . 2012 12 Core Remaining (%) 70 | 100 32 . . . 65 . . . . 79 . . . . 31 . . . . 84 . 85 . . 77 . . 82 Volleys Fired 1413 | 19 112 109 86 12 . 88 10 4 1 . 88 9 11 . 11 44 85 16 20 31 45 166 51 98 113 15 169 . Largest 4 | 2 2 2 2 2 . 2 2 2 1 . 3 3 3 . 3 3 3 3 3 3 3 3 4 4 4 3 4 . Hottest 345 | 70 112 95 168 168 . 205 200 170 90 . 228 190 190 . 205 203 227 305 105 175 110 200 345 288 275 200 270 . Shots Fired 3001 | 38 225 213 163 22 . 156 20 8 1 . 194 16 20 . 26 82 132 45 58 80 107 401 176 222 311 17 268 . Gun 1660 | 38 223 10 4 . . 2 . . . . 8 3 5 . . 24 29 45 58 74 94 353 157 157 254 3 119 . Cannon 1240 | . 1 186 149 22 . 151 16 8 1 . 171 10 15 . 22 52 72 . . 6 13 46 19 65 57 14 144 . Launcher 69 | . . 17 10 . . 3 3 . . . 15 3 . . 4 6 2 . . . . 2 . . . . 4 . Special 32 | . 1 . . . . . 1 . . . . . . . . . 29 . . . . . . . . . 1 . Kinetic 1999 | 19 116 168 98 . . . . . . . 87 7 11 . 14 72 80 38 58 74 94 345 154 157 262 3 142 . Thermal 889 | 19 109 28 55 22 . 153 17 8 1 . 92 6 9 . 8 4 21 7 . 6 13 46 19 62 49 14 121 . Explosive 49 | . . 17 10 . . 3 . . . . 1 3 . . 4 3 2 . . . . 2 . . . . 4 . Electromagnetic 34 | . . . . . . . 3 . . . 14 . . . . 3 . . . . . 8 3 3 . . . . Robot Hit Streak 48 | 5 11 11 14 8 . 11 4 2 . . 19 2 2 . 6 6 15 13 13 22 13 33 25 28 48 4 47 . Robot Miss Streak 9 | 3 8 4 4 5 . 8 4 1 . . 9 4 6 . 1 5 4 3 3 2 4 5 3 2 3 2 3 . Penetration Max 2 | . . . . . . . . . . . . . . . . 1 1 1 1 1 1 1 2 2 1 . 1 . Secondary Targets 29 | . 2 . . . . . . . . . . . . . . . 1 2 . 1 2 8 4 2 6 . 1 . Max Gunslinging Chain 2 | . 1 . . . . . . . . . . . . . . . 1 1 . 1 1 1 1 1 2 . 1 . Capacitor 95 | . . . . . . . . . . . . . . . . . . . . . . . . . . . 95 . Shots Hit Robots 2018 | 22 112 129 104 21 . 100 14 2 5 . 121 7 7 2 10 44 81 31 38 58 66 308 125 157 230 6 218 . Core Hits 1113 | 4 49 79 78 12 . 58 10 2 2 . 117 9 4 . 16 32 39 16 21 26 34 152 64 91 112 8 78 . Critical Kills 112 | . . 1 . . . . 1 . . . 4 . . . 1 . 4 2 5 3 4 23 18 16 25 2 3 . Critical Parts Destroyed 177 | . 1 . . . . . . . . . . . . . . 1 8 1 5 4 12 61 14 26 34 . 10 . Critical Strikes 327 | 2 4 7 1 . . . 1 . . . 4 . . . 2 2 15 3 11 10 18 86 32 43 63 2 21 . Burn 5 | 2 3 . . . . . . . . . . . . . . . . . . . . . . . . . . . Meltdown 11 | . . 1 . . . . 1 . . . 3 . . . 1 . . . . . . 1 . 2 1 1 . . Destroy 299 | . 1 . . . . . . . . . 1 . . . . 1 14 3 11 10 18 85 32 40 62 1 20 . Blast 10 | . . 6 1 . . . . . . . . . . . 1 1 1 . . . . . . . . . . . Corrupt 1 | . . . . . . . . . . . . . . . . . . . . . . . . 1 . . . . Impale 1 | . . . . . . . . . . . . . . . . . . . . . . . . . . . 1 . Melee Attacks 66 | . . . . 19 . . . . 5 1 . . . 2 2 4 . . . . 1 . . 4 1 1 26 . Kinetic 27 | . . . . . . . . . . . . . . . . . . . . . . . . 4 . 1 22 . Impact . | . . . . . . . . . . . . . . . . . . . . . . . . . . . . . Slashing 19 | . . . . 19 . . . . . . . . . . . . . . . . . . . . . . . . Piercing 20 | . . . . . . . . . 5 1 . . . 2 2 4 . . . . 1 . . . 1 . 4 . Sneak Attacks 4 | . . . . 3 . . . . . . . . . . . . . . . . . . . . . 1 . . Combat Hostiles 1 | . . . . . . . . . . . . . . . . . . . . . . . . . . 1 . . Follow-up Attacks . | . . . . . . . . . . . . . . . . . . . . . . . . . . . . . Damage Inflicted 74273 | 231 1411 3854 4343 808 . 3808 486 57 337 . 4184 538 237 71 1027 2353 2682 950 1144 1896 2113 9624 3672 10505 8487 1424 8031 . Guns 25000 | 231 1370 109 61 . . 25 . . . . 76 25 . . . 416 397 950 1144 1851 2113 6259 2563 2345 3740 17 1308 . Cannons 29798 | . 17 2019 2078 426 . 3471 418 57 . . 3422 150 237 . 303 1142 1672 . . 40 . 1795 633 4387 2431 766 4334 . Explosions 16322 | . . 1702 2202 . . 312 68 . . . 686 363 . . 724 782 581 . . . . 1522 432 3664 2316 641 327 . Melee 2951 | . . . . 372 . . . . 337 . . . . 71 . . . . . . . . . 109 . . 2062 . Ramming 202 | . 24 24 2 10 . . . . . . . . . . . 13 32 . . 5 . 48 44 . . . . . Kinetic 33106 | 93 482 1855 1203 . . . . . . . 1616 67 27 . 73 1405 1502 719 1144 1851 2113 6251 2557 2454 3757 17 3920 . Thermal 32206 | 138 905 273 936 426 . 3496 418 57 . . 2052 108 210 . 230 255 567 231 . 40 . 3169 1065 7840 4730 1407 3653 . Explosive 6928 | . . 1702 2202 . . 312 . . . . 13 363 . . 724 502 581 . . . . 148 . 111 . . 270 . Electromagnetic 863 | . . . . . . . 68 . . . 503 . . . . 178 . . . . . 8 6 100 . . . . Impact . | . . . . . . . . . . . . . . . . . . . . . . . . . . . . . Slashing 372 | . . . . 372 . . . . . . . . . . . . . . . . . . . . . . . . Piercing 596 | . . . . . . . . . 337 . . . . 71 . . . . . . . . . . . . 188 . Highest Corruption 34 | . 2 5 5 5 . 8 1 1 1 . 17 17 17 17 17 10 15 33 33 8 12 33 5 9 11 9 34 15 Average Corruption 9 | . 2 4 5 5 . 5 1 1 1 . 11 17 17 17 17 6 10 30 18 2 7 22 2 6 10 7 19 15 Corruption Purged 74 | . . . . . . 7 . . . . . . . . . . . . 33 . . . . . . . 34 . Corruption Blocked . | . . . . . . . . . . . . . . . . . . . . . . . . . . . . . Effects 1102 | . 21 60 60 39 . 59 4 10 . . 78 44 42 15 33 20 85 52 36 1 52 133 11 94 67 4 81 1 Message Errors 265 | . 8 15 15 6 . 14 1 2 . . 14 10 9 3 8 5 18 14 7 . 14 29 . 29 15 3 25 1 Matter Fused 269 | . 5 15 15 14 . 12 . 1 . . 20 12 11 1 10 5 19 12 14 . 13 37 4 22 15 . 12 . Heat Flow Errors 132 | . 1 6 6 5 . 8 2 1 . . 3 6 6 3 2 3 14 6 6 . 6 18 1 11 7 . 11 . Energy Discharges 120 | . 2 7 7 2 . 11 . 1 . . 11 4 7 3 4 3 10 6 4 . 6 9 2 5 8 . 8 . Parts Rejected 10 | . 1 . . . . . . . . . 1 1 . . . . . . . . . 1 . 1 4 . 1 . Parts Fused 18 | . . . 1 1 . . . . . . 5 . 1 1 . 1 1 1 . . 1 2 . 1 . . 2 . Data Loss (minor) 112 | . 1 6 6 7 . 6 1 3 . . 11 3 4 2 2 . 12 4 2 1 5 16 1 10 4 1 4 . Data Loss (major) 54 | . . 3 1 4 . 5 . . . . 1 3 2 2 3 1 4 2 1 . 3 3 2 6 5 . 3 . Misfires 47 | . 2 5 5 . . 1 . 2 . . 5 3 . . 4 . 2 6 . . . 4 . 3 1 . 4 . Alerts 18 | . 1 2 . . . . . . . . . 2 1 . . 1 . . . . 3 1 1 3 1 . 2 . Misdirections 3 | . . . . . . . . . . . . . . . . . 2 . . . . . . . 1 . . . Weapon Failures 54 | . . 1 4 . . 2 . . . . 7 . 1 . . 1 3 1 2 . 1 13 . 3 6 . 9 . Overload Shots 6 | . . . . . . 3 . . . . . . . . . . . 3 . . . . . . . . . . Overflow Damage 3952 | . . 3 55 115 . 102 19 . 93 . 116 23 . . 15 70 96 . . . . 337 43 1518 595 269 483 . Projectiles 2255 | . . 3 42 15 . 102 19 . . . 64 8 . . . 59 53 . . . . 214 23 1039 363 196 55 . Explosions 1074 | . . . 13 . . . . . . . 52 15 . . 15 11 41 . . . . 123 20 479 232 73 . . Melee 623 | . . . . 100 . . . . 93 . . . . . . . 2 . . . . . . . . . 428 . Knockbacks 72 | . 1 11 9 . . . . . . . 35 . . . 4 8 3 . . . . . . . 1 . . . Impact 2 | . 1 . . . . . . . . . . . . . . 1 . . . . . . . . . . . . Kinetic 67 | . . 10 9 . . . . . . . 35 . . . 2 7 3 . . . . . . . 1 . . . Secondary 3 | . . 1 . . . . . . . . . . . . 2 . . . . . . . . . . . . . Self-Inflicted Damage 591 | . . 96 . . . . . . . . 58 35 . . . 85 . . . . . 49 . 69 . 69 130 . Shots 15 | . . 3 . . . . . . . . 3 1 . . . 3 . . . . . 1 . 1 . 1 2 . Rammed 16 | . 5 3 1 2 . . . . . . . . . . . 1 1 . . 1 . 2 . . . . . . Targets Rammed 19 | . 5 3 1 2 . . . . . . 1 . . . . 1 1 . . 1 . 2 2 . . . . . Kicked 1 | . . . . . . . . . . . 1 . . . . . . . . . . . . . . . . . Crushed 2 | . . . . . . . . . . . . . . . . . . . . . . . 2 . . . . . Highest Temperature 630 | 102 317 237 169 257 . 448 263 264 66 . 630 201 315 206 212 213 392 261 215 35 207 254 122 245 373 16 353 . Average Temperature 86 | 44 81 43 47 62 . 93 61 86 36 . 155 69 102 99 44 59 110 130 93 30 72 65 33 75 62 8 150 . Received Heat Transfer 3676 | . 300 363 404 9 . 726 18 . . . 441 9 . . 48 6 253 35 . 63 24 520 49 69 135 4 200 . Effects 38 | . 3 . . . . 3 . 1 . . 19 . . . . . 2 2 . . . . . . . . 8 . Shutdowns 10 | . . . . . . 2 . . . . 7 . . . . . . . . . . . . . . . 1 . Energy Bleed 6 | . 1 . . . . . . 1 . . 3 . . . . . . 1 . . . . . . . . . . Interference 15 | . 1 . . . . . . . . . 4 . . . . . 2 1 . . . . . . . . 7 . Matter Decay 1 | . . . . . . . . . . . 1 . . . . . . . . . . . . . . . . . Short Circuit 3 | . 1 . . . . 1 . . . . 1 . . . . . . . . . . . . . . . . . Damage (minor) 1 | . . . . . . . . . . . 1 . . . . . . . . . . . . . . . . . Damage (core) 2 | . . . . . . . . . . . 2 . . . . . . . . . . . . . . . . . Siege Activations 85 | . . . . . . . . . . . . . . . . . . 1 3 7 5 22 12 18 13 1 3 . Total Turns 1591 | . . . . . . . . . . . . . . . . . . 12 37 75 56 491 234 309 243 10 124 . Longest Duration 94 | . . . . . . . . . . . . . . . . . . 12 19 19 17 94 80 48 57 10 79 . Robots Corrupted 2 | . . . . . . . . . . . 1 . . . . . 1 . . . . . . . . . . . Combat Hostiles 1 | . . . . . . . . . . . 1 . . . . . . . . . . . . . . . . . Parts Fried 1 | . . . . . . . . . . . 1 . . . . . . . . . . . . . . . . . Impact Corruptions 1 | . . . . . . . . . . . . . . . . . 1 . . . . . . . . . . . Robots Melted 13 | . . 1 . . . . 1 . . . 3 . . . 1 . . . . . . 1 . 4 1 1 . . Combat Hostiles 10 | . . 1 . . . . . . . . 3 . . . 1 . . . . . . 1 . 2 1 1 . . Parts Melted 53 | 1 3 1 2 1 . 11 3 . . . 6 . . . 1 . . . . . 1 7 2 9 . 4 1 . Heat Transferred 28836 | 555 2183 555 1253 572 . 4486 549 100 . . 2844 125 250 . 222 198 537 248 . 37 . 2901 796 5182 3189 920 1134 . Parts Sabotaged . | . . . . . . . . . . . . . . . . . . . . . . . . . . . . . Parts Stolen . | . . . . . . . . . . . . . . . . . . . . . . . . . . . . . Parts Stripped 108 | . . . . . . . . . . . . . . . . . . . . . . . . 30 . 16 62 . Power Chain Reactions 5 | . . . . . . . . . . . 2 . . . . 2 . . . . . 1 . . . . . . Alert | -11 -10 -9 -9 -9 -9 -6 -6 -6 -6 -5 -5 -5 -5 -5 -4 -4 -4 -4 -4 -4 -3 -3 -2 -2 -2 -1 -1 -1 ------- Run | Yrd Mat Mat Sto Rec Scr Fac Low Low Zio Pro Fac Upp Upp Zhi Pro Fac Ext Cet Arc Hub Res Tes Res Qua Sec Acc Com Ac0 Peak Influence 1820 | 15 268 978 1535 548 . 472 . . . . 866 . . . . 302 1080 935 538 471 413 965 1135 1622 1820 1628 1324 . Initial 1100 | . 9 72 412 456 . . . . . . . . . . . . 70 604 317 65 246 74 542 575 892 1100 1041 . Average 504 | 8 125 567 840 289 . 206 . . . . 431 . . . . 165 282 751 403 202 222 385 687 787 1235 1302 1135 . Maximum Alert Level 5 | . 1 3 4 2 . 2 . . . . 3 . . . . 1 3 3 2 2 2 3 4 5 5 5 4 . Low Security (%) 35 | 100 73 8 . 22 . 58 . . . . 42 . . . . 54 62 . 9 48 52 19 . . . . 81 . Level 1 17 | . 26 14 2 56 . 18 . . . . 4 . . . . 45 12 . 47 43 40 47 . . . . . . Level 2 21 | . . 50 48 21 . 22 . . . . 5 . . . . . 10 4 43 8 7 22 58 60 . . . . Level 3 16 | . . 27 21 . . . . . . . 46 . . . . . 14 95 . . . 10 41 17 40 . 9 . Level 4 8 | . . . 27 . . . . . . . . . . . . . . . . . . . . 22 44 90 8 . Level 5 . | . . . . . . . . . . . . . . . . . . . . . . . . . 11 9 . . High Security . | . . . . . . . . . . . . . . . . . . . . . . . . . 3 . . . Max Security . | . . . . . . . . . . . . . . . . . . . . . . . . . . . . . Squads Dispatched 98 | . 4 5 8 . . 13 . . . . 12 . . . . 4 5 1 . 4 1 10 8 10 9 2 2 . Investigation 21 | . 1 2 1 . . 5 . . . . 2 . . . . . 2 1 . 1 . 4 2 . . . . . Extermination 28 | . . . . . . 5 . . . . 3 . . . . 2 . . . 1 . 4 3 5 3 . 2 . Reinforcement 29 | . 3 2 3 . . 2 . . . . 4 . . . . 2 2 . . 2 1 2 1 1 2 2 . . Assault 19 | . . 1 4 . . 1 . . . . 2 . . . . . 1 . . . . . 2 4 4 . . . Garrison 1 | . . . . . . . . . . . 1 . . . . . . . . . . . . . . . . . Intercept . | . . . . . . . . . . . . . . . . . . . . . . . . . . . . . Searches Triggered . | . . . . . . . . . . . . . . . . . . . . . . . . . . . . . Construction Impeded 12 | . . 1 1 . . 1 . . . . 3 . . . . 1 2 . . . . 2 . 1 . . . . Haulers Reinforced 1 | . . . . . . . . . . . . . . . . . . . . . 1 . . . . . . . Active Scanning Responses . | . . . . . . . . . . . . . . . . . . . . . . . . . . . . . Cargo Convoy Interrupts 1 | . . . . . . . . . . . . . . . . . . . . . . . 1 . . . . . Stealth | -11 -10 -9 -9 -9 -9 -6 -6 -6 -6 -5 -5 -5 -5 -5 -4 -4 -4 -4 -4 -4 -3 -3 -2 -2 -2 -1 -1 -1 --------- Run | Yrd Mat Mat Sto Rec Scr Fac Low Low Zio Pro Fac Upp Upp Zhi Pro Fac Ext Cet Arc Hub Res Tes Res Qua Sec Acc Com Ac0 Distress Signals 33 | . 1 4 1 . . 2 . . . . 3 . . . . 1 1 2 . 1 5 6 1 2 3 . . . Communications Jammed . | . . . . . . . . . . . . . . . . . . . . . . . . . . . . . Distress Signals . | . . . . . . . . . . . . . . . . . . . . . . . . . . . . . Times Spotted 629 | . 42 59 54 2 . 41 7 . . . 44 6 1 . 14 19 35 14 11 21 19 56 32 56 70 8 17 1 Peak Tracking Total 9 | . 5 5 9 1 . 8 4 . . . 7 5 1 . 5 5 5 5 2 5 7 7 5 6 8 3 4 1 Tactical Retreats 24 | . 4 4 . . . 2 1 . . . 3 . . . . . . . . . 1 5 1 . 2 . 1 . Traps | -11 -10 -9 -9 -9 -9 -6 -6 -6 -6 -5 -5 -5 -5 -5 -4 -4 -4 -4 -4 -4 -3 -3 -2 -2 -2 -1 -1 -1 ------- Run | Yrd Mat Mat Sto Rec Scr Fac Low Low Zio Pro Fac Upp Upp Zhi Pro Fac Ext Cet Arc Hub Res Tes Res Qua Sec Acc Com Ac0 Traps Triggered 14 | . 2 1 2 . . 2 . . . . 1 . 1 . . . 1 . . . 3 . . . . . 1 . Indirectly . | . . . . . . . . . . . . . . . . . . . . . . . . . . . . . Trap Hack Attempts . | . . . . . . . . . . . . . . . . . . . . . . . . . . . . . Triggered . | . . . . . . . . . . . . . . . . . . . . . . . . . . . . . Disarmed . | . . . . . . . . . . . . . . . . . . . . . . . . . . . . . Reprogrammed 6 | . . . . . . . . . . . . . . . . . . . . . . . . . 6 . . . Reused 3 | . . . . . . . . . . . . . . . . . . . . . . . . . 3 . . . Traps Extracted . | . . . . . . . . . . . . . . . . . . . . . . . . . . . . . Installed . | . . . . . . . . . . . . . . . . . . . . . . . . . . . . . Triggered 7 | . . . . . . . . . . 1 . 1 . . . . . . . . . . 2 . 3 . . . Machines | -11 -10 -9 -9 -9 -9 -6 -6 -6 -6 -5 -5 -5 -5 -5 -4 -4 -4 -4 -4 -4 -3 -3 -2 -2 -2 -1 -1 -1 ---------- Run | Yrd Mat Mat Sto Rec Scr Fac Low Low Zio Pro Fac Upp Upp Zhi Pro Fac Ext Cet Arc Hub Res Tes Res Qua Sec Acc Com Ac0 Machines Disabled 90 | . 1 9 5 1 . 11 . . . . 7 . . . . . 4 3 5 3 . 7 4 11 7 7 5 . Max in Single Turn 5 | . 1 3 1 1 . 1 . . . . 5 . . . . . 1 1 1 1 . 1 3 1 1 2 2 . Garrison Access 8 | . . . 1 . . 1 . . . . 1 . . . . . . . . . 2 . 1 1 . 1 . . Phase Generator 1 | . . . . . . . . . . . . . . . . . . . . . . . . . . . 1 . Network Hub 1 | . . . . . . . . . . . . . . . . . . . . 1 . . . . . . . . Energy Cycler 2 | . . . . . . . . . . . . . . . . . 2 . . . . . . . . . . . Machines Repaired . | . . . . . . . . . . . . . . . . . . . . . . . . . . . . . Machines Dismantled . | . . . . . . . . . . . . . . . . . . . . . . . . . . . . . Machines Sabotaged 1 | . . . . . . . . . . . . . . . . . . . . 1 . . . . . . . . Overloaded Fab Kills . | . . . . . . . . . . . . . . . . . . . . . . . . . . . . . Hacking | -11 -10 -9 -9 -9 -9 -6 -6 -6 -6 -5 -5 -5 -5 -5 -4 -4 -4 -4 -4 -4 -3 -3 -2 -2 -2 -1 -1 -1 --------- Run | Yrd Mat Mat Sto Rec Scr Fac Low Low Zio Pro Fac Upp Upp Zhi Pro Fac Ext Cet Arc Hub Res Tes Res Qua Sec Acc Com Ac0 Machines Accessed 121 | . 5 14 9 7 4 10 . 3 . . 5 1 3 4 . 1 9 1 . 4 8 8 6 10 6 1 2 . Terminals 74 | . 4 11 7 6 . 6 . . . . 2 . . . . 1 8 1 . 4 2 4 4 7 5 . 2 . Fabricators 4 | . . . . . . 1 . . . . 1 . . . . . . . . . 1 1 . . . . . . Repair Stations 11 | . 1 1 1 . . 1 . . . . 1 . . . . . 1 . . . . 2 . 2 1 . . . Recycling Units 1 | . . . . 1 . . . . . . . . . . . . . . . . . . . . . . . . Scanalyzers 9 | . . 2 . . . 2 . . . . . . . . . . . . . . 3 1 1 . . . . . Garrison Access 7 | . . . 1 . . . . . . . 1 . . . . . . . . . 2 . 1 1 . 1 . . Total Hacks 392 | . 13 40 29 19 37 32 . 9 . . 12 1 8 17 . 3 19 5 . 14 34 23 18 34 22 1 2 . Successful 224 | . 7 22 13 8 37 17 . 9 . . 5 1 8 17 . . 8 3 . 4 16 11 4 23 9 1 1 . Failed 166 | . 5 17 16 11 . 15 . . . . 7 . . . . 3 11 2 . 10 18 12 14 11 13 . 1 . Catastrophic 29 | . 2 1 1 4 . . . . . . 1 . . . . 2 . . . 3 2 3 3 3 3 . 1 . Database Lockouts 2 | . 1 1 . . . . . . . . . . . . . . . . . . . . . . . . . . Manual 125 | . 6 18 14 6 . 11 . . . . 4 . . . . 3 5 1 . 14 7 15 7 5 9 . . . Terminals 201 | . 11 28 25 17 . 15 . . . . 6 . . . . 3 15 5 . 14 7 10 15 10 18 . 2 . Fabricators 16 | . . . . . . 3 . . . . 3 . . . . . . . . . 7 3 . . . . . . Repair Stations 51 | . 2 5 2 . . 5 . . . . 2 . . . . . 4 . . . . 4 . 23 4 . . . Recycling Units 2 | . . . . 2 . . . . . . . . . . . . . . . . . . . . . . . . Scanalyzers 41 | . . 7 . . . 9 . . . . . . . . . . . . . . 18 6 1 . . . . . Garrison Access 9 | . . . 2 . . . . . . . 1 . . . . . . . . . 2 . 2 1 . 1 . . Terminal Hacks 129 | . 4 10 11 6 37 3 . 9 . . 1 1 8 17 . . 5 3 . 1 2 2 1 2 5 . 1 . Record 52 | . . . . . 31 . . 7 . . . . 6 5 . . . 3 . . . . . . . . . . Part Schematic 9 | . 1 . . 4 . . . . . . . . . 4 . . . . . . . . . . . . . . Robot Analysis 15 | . 1 3 1 . 6 . . . . . . . . 4 . . . . . . . . . . . . . . Prototype ID Bank 5 | . . . . 1 . . . . . . . . . 4 . . . . . . . . . . . . . . Open Door 14 | . . . 3 . . . . 2 . . . 1 2 . . . 4 . . . . . . 1 . . 1 . Level Access Points 1 | . . . . . . . . . . . . . . . . . . . . . . . . . 1 . . . Branch Access Points 2 | . . 1 . . . . . . . . 1 . . . . . . . . . . . . . . . . . Terminal Index 1 | . . . . . . . . . . . . . . . . . . . . 1 . . . . . . . . Fabricator Index 1 | . . . . . . . . . . . . . . . . . . . . . 1 . . . . . . . Scanalyzer Index 2 | . . . . . . 1 . . . . . . . . . . . . . . 1 . . . . . . . Alert Level 2 | . . . . . . . . . . . . . . . . . . . . . . 1 . . 1 . . . Unreport Threat 10 | . . . 2 . . 2 . . . . . . . . . . 1 . . . . 1 1 1 2 . . . Locate Traps 3 | . 1 1 1 . . . . . . . . . . . . . . . . . . . . . . . . . Reprogram Traps 1 | . . . . . . . . . . . . . . . . . . . . . . . . . 1 . . . Recall Investigation 2 | . . 1 1 . . . . . . . . . . . . . . . . . . . . . . . . . Hauler Manifests 3 | . 1 1 1 . . . . . . . . . . . . . . . . . . . . . . . . . Registered Components 2 | . . 1 1 . . . . . . . . . . . . . . . . . . . . . . . . . Zone Layout 4 | . . 2 1 1 . . . . . . . . . . . . . . . . . . . . . . . . Fabricator Hacks 10 | . . . . . . 2 . . . . 2 . . . . . . . . . 4 2 . . . . . . Load Schematic 5 | . . . . . . 1 . . . . 1 . . . . . . . . . 2 1 . . . . . . Build 5 | . . . . . . 1 . . . . 1 . . . . . . . . . 2 1 . . . . . . Repair Station Hacks 34 | . 2 4 . . . 4 . . . . 1 . . . . . 1 . . . . . . 20 2 . . . Scan Component 19 | . 1 2 . . . 2 . . . . 1 . . . . . 1 . . . . . . 11 1 . . . Repair 15 | . 1 2 . . . 2 . . . . . . . . . . . . . . . . . 9 1 . . . Recycling Unit Hacks 1 | . . . . 1 . . . . . . . . . . . . . . . . . . . . . . . . Retrieve Components 1 | . . . . 1 . . . . . . . . . . . . . . . . . . . . . . . . Scanalyzer 22 | . . 6 . . . 6 . . . . . . . . . . . . . . 7 2 1 . . . . . Insert Component 12 | . . 3 . . . 3 . . . . . . . . . . . . . . 4 1 1 . . . . . Analyze 10 | . . 3 . . . 3 . . . . . . . . . . . . . . 3 1 . . . . . . Garrison Access Hacks 4 | . . . . . . . . . . . . . . . . . . . . . 2 . . 1 . 1 . . Seal Access 4 | . . . . . . . . . . . . . . . . . . . . . 2 . . 1 . 1 . . Unauthorized Hacks 24 | . 1 2 2 1 . 2 . . . . 1 . . . . . 2 . . 3 1 5 2 . 2 . . . Terminals 17 | . 1 2 1 1 . 1 . . . . . . . . . . 2 . . 3 1 2 1 . 2 . . . Botnet 16 | . 1 2 1 1 . 1 . . . . . . . . . . 2 . . 2 1 2 1 . 2 . . . Sabotage 1 | . . . . . . . . . . . . . . . . . . . . 1 . . . . . . . . Fabricators 2 | . . . . . . 1 . . . . . . . . . . . . . . . 1 . . . . . . Prioritize 1 | . . . . . . . . . . . . . . . . . . . . . . 1 . . . . . . Liberate 1 | . . . . . . 1 . . . . . . . . . . . . . . . . . . . . . . Repair Stations 1 | . . . . . . . . . . . . . . . . . . . . . . 1 . . . . . . Patch 1 | . . . . . . . . . . . . . . . . . . . . . . 1 . . . . . . Recycling Units . | . . . . . . . . . . . . . . . . . . . . . . . . . . . . . Scanalyzers 1 | . . . . . . . . . . . . . . . . . . . . . . 1 . . . . . . Researchers 1 | . . . . . . . . . . . . . . . . . . . . . . 1 . . . . . . Garrison Access 3 | . . . 1 . . . . . . . 1 . . . . . . . . . . . 1 . . . . . Jam 3 | . . . 1 . . . . . . . 1 . . . . . . . . . . . 1 . . . . . Data Cores Recovered 4 | . 1 1 . . . . . . . . . . . . . . . . . . . . . 1 . . 1 . Used 1 | . 1 . . . . . . . . . . . . . . . . . . . . . . . . . . . Hacking Detections 91 | . 4 11 8 7 . 9 . . . . 3 . . . . 1 8 1 . 4 6 7 6 9 6 . 1 . Full Trace Events 21 | . . 3 . 6 . 4 . . . . 1 . . . . . 2 1 . . . 3 1 . . . . . Feedback Events 1 | . . 1 . . . . . . . . . . . . . . . . . . . . . . . . . . Corruption 1 | . . 1 . . . . . . . . . . . . . . . . . . . . . . . . . . Feedback Blocked . | . . . . . . . . . . . . . . . . . . . . . . . . . . . . . Robot Schematics Acquired 4 | . . . . . . . . . 4 . . . . . . . . . . . . . . . . . . . Robots Built . | . . . . . . . . . . . . . . . . . . . . . . . . . . . . . Authchips . | . . . . . . . . . . . . . . . . . . . . . . . . . . . . . Time . | . . . . . . . . . . . . . . . . . . . . . . . . . . . . . Total Robot Build Rating . | . . . . . . . . . . . . . . . . . . . . . . . . . . . . . Part Schematics Acquired 39 | . 1 3 . 4 . 2 . . 14 . . . . 4 . . . . . . 3 5 . 3 . . . . Parts Built 5 | . . . . . . 1 . . . . 1 . . . . . . . . . 2 1 . . . . . . Authchips 3 | . . . . . . 1 . . . . . . . . . . . . . . 2 . . . . . . . Time 553 | . . . . . . 152 . . . . 95 . . . . . . . . . 204 102 . . . . . . Total Part Build Rating 34 | . . . . . . 5 . . . . 5 . . . . . . . . . 16 8 . . . . . . Parts Repaired 15 | . 1 2 . . . 2 . . . . . . . . . . . . . . . . . 9 1 . . . Time 1161 | . 26 52 . . . 132 . . . . . . . . . . . . . . . . . 915 36 . . . Parts Recycled . | . . . . . . . . . . . . . . . . . . . . . . . . . . . . . Recycled Matter . | . . . . . . . . . . . . . . . . . . . . . . . . . . . . . Retrieved Matter . | . . . . . . . . . . . . . . . . . . . . . . . . . . . . . Retrieved Components 4 | . . . . 4 . . . . . . . . . . . . . . . . . . . . . . . . Parts Scanalyzed 9 | . . 3 . . . 2 . . . . . . . . . . . . . . 3 1 . . . . . . Part Schematics Acquired 9 | . . 3 . . . 2 . . . . . . . . . . . . . . 3 1 . . . . . . Parts Damaged 1 | . . . . . . 1 . . . . . . . . . . . . . . . . . . . . . . Bothacking | -11 -10 -9 -9 -9 -9 -6 -6 -6 -6 -5 -5 -5 -5 -5 -4 -4 -4 -4 -4 -4 -3 -3 -2 -2 -2 -1 -1 -1 ------------ Run | Yrd Mat Mat Sto Rec Scr Fac Low Low Zio Pro Fac Upp Upp Zhi Pro Fac Ext Cet Arc Hub Res Tes Res Qua Sec Acc Com Ac0 Used RIF Installer . | . . . . . . . . . . . . . . . . . . . . . . . . . . . . . Robots Hacked 1 | . . . . . . . . . . . . . . . . . . . . . . . . . . . 1 . Non-combat . | . . . . . . . . . . . . . . . . . . . . . . . . . . . . . Combat . | . . . . . . . . . . . . . . . . . . . . . . . . . . . . . Robot Hacks Applied . | . . . . . . . . . . . . . . . . . . . . . . . . . . . . . Manual 1 | . . . . . . . . . . . . . . . . . . . . . . . . . . . 1 . Relay Couplers Released 6 | . . . . . . . . . . . 3 . . . . . . . . . . . . . . 3 . . Machine Destruction 3 | . . . . . . . . . . . 3 . . . . . . . . . . . . . . . . . Programmers 3 | . . . . . . . . . . . . . . . . . . . . . . . . . . 3 . . Fabnet Peak Effective % . | . . . . . . . . . . . . . . . . . . . . . . . . . . . . . Robots Rewired 18 | . . . . . . . . . . . . . . . . . 18 . . . . . . . . . . . Allies Hacked . | . . . . . . . . . . . . . . . . . . . . . . . . . . . . . Hacks Repelled . | . . . . . . . . . . . . . . . . . . . . . . . . . . . . . Allies | -11 -10 -9 -9 -9 -9 -6 -6 -6 -6 -5 -5 -5 -5 -5 -4 -4 -4 -4 -4 -4 -3 -3 -2 -2 -2 -1 -1 -1 -------- Run | Yrd Mat Mat Sto Rec Scr Fac Low Low Zio Pro Fac Upp Upp Zhi Pro Fac Ext Cet Arc Hub Res Tes Res Qua Sec Acc Com Ac0 Total Allies 43 | . . . 2 . . 2 . . 2 . . . . . . . 26 5 . . . . . . . 3 3 . Largest Group 15 | . . . 2 2 . 2 . . 2 2 1 . . . . . 15 14 8 2 . . . . . 3 . . Highest-Rated Group 955 | . . . 62 62 . 74 . . 76 76 51 . . . . . 641 955 566 142 . . . . . 379 . . Highest-Rated Ally 159 | . . . 31 31 . 37 . . 51 51 51 . . . . . 159 159 159 96 . . . . . 135 . . Total Orders 30 | . . . . . . . 3 . . . . . . . . . 1 15 4 7 . . . . . . . . STAY 17 | . . . . . . . . . . . . . . . . . 1 10 2 4 . . . . . . . . FOLLOW 10 | . . . . . . . . . . . . . . . . . . 5 2 3 . . . . . . . . RETURN 3 | . . . . . . . 3 . . . . . . . . . . . . . . . . . . . . . Ally Attacks 438 | . . . 18 17 . 12 . . . . 2 . . . . . 217 103 23 14 . . . . . 29 3 . Total Damage 12551 | . . . 231 255 . 983 . . . . 188 . . . . . 5757 2838 663 503 . . . . . 1121 12 . Kills 77 | . . . 3 3 . 10 . . . . 2 . . . . . 36 12 3 4 . . . . . 4 . . Allies Corrupted . | . . . . . . . . . . . . . . . . . . . . . . . . . . . . . Allies Melted 2 | . . . . . . . 1 . . . . . . . . . 1 . . . . . . . . . . . Intel | -11 -10 -9 -9 -9 -9 -6 -6 -6 -6 -5 -5 -5 -5 -5 -4 -4 -4 -4 -4 -4 -3 -3 -2 -2 -2 -1 -1 -1 ------- Run | Yrd Mat Mat Sto Rec Scr Fac Low Low Zio Pro Fac Upp Upp Zhi Pro Fac Ext Cet Arc Hub Res Tes Res Qua Sec Acc Com Ac0 Robot Analysis Total 15 | . 1 3 1 . 6 . . . . . . . . 4 . . . . . . . . . . . . . . Derelict Logs Recovered 5 | . . . . . . . 1 . 1 . . 1 1 . 1 . . . . . . . . . . . . . Drone Launches 3 | . . . . . . . 3 . . . . . . . . . . . . . . . . . . . . . Drone Recoveries 3 | . . . . . . . 3 . . . . . . . . . . . . . . . . . . . . . Exploration | -11 -10 -9 -9 -9 -9 -6 -6 -6 -6 -5 -5 -5 -5 -5 -4 -4 -4 -4 -4 -4 -3 -3 -2 -2 -2 -1 -1 -1 ------------- Run | Yrd Mat Mat Sto Rec Scr Fac Low Low Zio Pro Fac Upp Upp Zhi Pro Fac Ext Cet Arc Hub Res Tes Res Qua Sec Acc Com Ac0 Turns Passed 48588 | 131 2080 3185 2142 1846 4775 3137 672 1501 2060 335 2023 975 1054 311 809 909 2125 1008 885 775 2307 2550 1210 2983 1619 565 4604 12 Spaces Moved 20572 | 45 906 1205 730 701 2941 1274 236 576 1014 166 805 463 528 153 360 393 872 481 112 328 1130 860 417 1127 637 263 1842 7 Core 363 | . . . . . 363 . . . . . . . . . . . . . . . . . . . . . . . Treads 14407 | 45 906 1205 730 701 1649 1273 73 . . . . . . . . . 621 481 112 328 1130 860 417 1127 637 263 1842 7 Legs 4351 | . . . . . . 1 163 576 1014 166 805 463 528 153 360 120 2 . . . . . . . . . . . Wheels 522 | . . . . . . . . . . . . . . . . 273 249 . . . . . . . . . . . Hover 110 | . . . . . 110 . . . . . . . . . . . . . . . . . . . . . . . Flight 819 | . . . . . 819 . . . . . . . . . . . . . . . . . . . . . . . Fastest Speed 37 | 160 160 160 240 240 37 160 240 198 198 198 190 190 190 190 190 101 101 160 160 160 160 160 160 160 160 160 151 173 Average Speed 187 | 160 160 212 240 240 159 189 259 249 198 198 200 190 190 190 201 171 207 189 160 160 160 161 160 160 160 187 206 173 Slowest Speed 750 | 160 240 320 240 240 240 750 320 265 198 198 270 190 190 190 330 470 540 240 160 160 240 240 160 245 160 246 255 173 Overloaded Moves . | . . . . . . . . . . . . . . . . . . . . . . . . . . . . . Propulsion Burnouts . | . . . . . . . . . . . . . . . . . . . . . . . . . . . . . Robots Hopped 1 | . . . . . 1 . . . . . . . . . . . . . . . . . . . . . . . Cave-ins Triggered 3 | . . . . . . . . . . . . . . . . . . . . . . . . . . . 3 . Teleports 2 | . . . . . . . . . . . . . . . . . . . . . . . . 1 . . . 1 Exploration Rate (%) 55 | 5 93 94 91 91 93 31 45 73 82 38 22 62 65 60 59 8 85 80 74 35 31 88 19 86 27 9 52 1 Regions Visited 28 Branch Regions 20 Pre-discovered Areas 11 | . . . . . 4 . 1 . 2 . . . 1 3 . . . . . . . . . . . . . . Known Exits Taken 19 | . . 1 . . 1 1 1 1 . 1 1 1 . . . 1 1 1 1 1 1 1 1 1 1 1 . . Unknown Exits Taken 9 | 1 1 . 1 1 . . . . 1 . . . 1 1 1 . . . . . . . . . . . 1 . Scrap Searched 24 | . . . . . 5 . 4 4 2 2 . 1 5 . 1 . . . . . . . . . . . . . Spaces Dug 132 | . . . . 13 . 14 . 1 . 1 8 . 3 . 5 3 . . . 5 13 6 6 15 13 12 14 . Terrain Destroyed 1449 | . . 85 74 13 . 46 2 2 . 1 98 60 6 . 59 46 50 4 11 34 14 113 45 189 86 86 325 . Melee 15 | . . . . 13 . . . . . 1 . . . . . 1 . . . . . . . . . . . . Projectile 336 | . . . 1 . . 29 2 2 . . 38 8 6 . 16 22 23 4 11 34 14 26 9 23 22 7 39 . AOE 1083 | . . 85 73 . . 17 . . . . 60 52 . . 43 23 27 . . . . 81 35 164 60 79 284 . Terrain Rammed . | . . . . . . . . . . . . . . . . . . . . . . . . . . . . . Walls Destroyed . | . . . . . . . . . . . . . . . . . . . . . . . . . . . . . Machines Disabled . | . . . . . . . . . . . . . . . . . . . . . . . . . . . . . Actions | -11 -10 -9 -9 -9 -9 -6 -6 -6 -6 -5 -5 -5 -5 -5 -4 -4 -4 -4 -4 -4 -3 -3 -2 -2 -2 -1 -1 -1 --------- Run | Yrd Mat Mat Sto Rec Scr Fac Low Low Zio Pro Fac Upp Upp Zhi Pro Fac Ext Cet Arc Hub Res Tes Res Qua Sec Acc Com Ac0 Total 28241 | 73 1341 1619 942 801 3025 1803 268 633 1056 171 1080 542 558 173 416 556 1106 560 785 521 1548 1772 858 2164 1074 314 2475 7 Wait 4406 | 1 255 163 48 29 . 310 1 24 26 . 75 52 7 . 32 89 42 12 638 129 231 600 323 725 240 15 339 . Move 20539 | 44 905 1204 729 700 2938 1273 235 575 1013 165 804 462 527 152 359 392 871 480 111 328 1129 859 416 1126 636 262 1838 6 Hop 1 | . . . . . 1 . . . . . . . . . . . . . . . . . . . . . . . Pick Up 307 | 4 15 37 11 3 32 29 3 3 4 2 13 4 1 3 1 3 11 9 6 5 20 17 6 31 12 2 20 . Fast Attach 296 | 1 8 11 2 6 21 20 3 9 . . 30 3 2 6 1 9 23 12 1 5 30 23 6 39 13 3 9 . Attach 123 | . 1 3 . . 3 15 1 . . . 10 . . 1 1 4 3 . 5 . 9 8 7 22 8 5 16 1 Detach 42 | . 1 . . 1 1 2 . . . . 1 . . 1 . . 1 . . . 2 4 6 10 2 4 6 . Swap 519 | 2 14 48 38 17 6 33 10 5 3 1 33 8 7 . 9 7 29 6 2 15 37 59 31 47 30 5 17 . Drop 485 | 2 25 41 23 10 23 33 5 13 4 2 25 4 3 8 . 3 32 25 2 8 44 34 10 62 19 2 23 . Fire 1413 | 19 112 109 86 12 . 88 10 4 1 . 88 9 11 . 11 44 85 16 20 31 45 166 51 98 113 15 169 . Melee 66 | . . . . 19 . . . . 5 1 . . . 2 2 4 . . . . 1 . . 4 1 1 26 . Ram 1 | . . . . . . . . . . . . . . . . 1 . . . . . . . . . . . . Kick 1 | . . . . . . . . . . . 1 . . . . . . . . . . . . . . . . . Crush 16 | . 5 3 1 2 . . . . . . . . . . . . 1 . . . . 2 2 . . . . . Escape Stasis 17 | . . . 4 . . . . . . . . . . . . . 8 . . . . . . . . . 5 . Rewire 9 | . . . . 2 . . . . . . . . . . . . . . . . . . . . . . 7 . Trap . | . . . . . . . . . . . . . . . . . . . . . . . . . . . . . Miscellaneous . | . . . . . . . . . . . . . . . . . . . . . . . . . . . . . Route ------- -11/Scrapyard -10/Materials (discovered 5 exits: *Mat x3 / [*Min x2]) -9/Materials (discovered 5 exits: [*Mat x3] / *Min / *Sto) -9/Storage (discovered 2 exits: [*Mat] / *Rec) -9/Recycling (discovered 2 exits: [*Fac] / *Scr) -9/Scraptown (discovered 2 exits: *Fac x2) -6/Factory (discovered 3 exits: *Fac / *Low x2) -6/Lower Caves -6/Lower Caves (discovered 2 exits: *Fac / *Zio) -6/Zion -5/Proximity Caves -5/Factory (discovered 2 exits: *Upp x2) -5/Upper Caves -5/Upper Caves (discovered 2 exits: *Fac / *Zhi) -5/Zhirov -4/Proximity Caves -4/Factory (discovered 3 exits: Res / [*Upp] / *Ext) -4/Extension (discovered 3 exits: *Res x2 / *Cet) -4/Cetus (discovered 2 exits: *Res / *Arc) -4/Archives (discovered 3 exits: *Res / *Hub x2) -4/Hub_04(d) -3/Research (discovered 4 exits: *Res x2 / Arm / *Tes) -3/Testing -2/Research -2/Quarantine (discovered 2 exits: Acc / *Sec) -2/Section 7 -1/Access (discovered 2 exits: Sur / *Com) -1/Command (discovered 3 exits: *Sur x2 / [*Ac0]) -1/Access_0 To Epsilon Eridani History --------- Turn | Location | Event 18 | -11/Scrapyard | Discovered new exit (range 3) 132 | -11/Scrapyard | Entered Materials 300 | -10/Materials | Build established: Mutant 571 | -10/Materials | Repaired Lgt. Treads 799 | -10/Materials | Discovered new exit (range 14) 1271 | -10/Materials | Discovered new exit (range 15) 1569 | -10/Materials | Core integrity fell below 50% 1687 | -10/Materials | Discovered new exit (range 14) 1761 | -10/Materials | Discovered new exit (range 12) 2027 | -10/Materials | Central database locked down 2089 | -10/Materials | Discovered new exit (range 8) 2212 | -10/Materials | Entered another Materials area 2212 | -9/Materials | Evolved 2 slots: Propulsion x1, Utility x1 2284 | -9/Materials | Discovered new exit (range 8) 2469 | -9/Materials | Discovered new exit (range 3) 2636 | -9/Materials | Discovered new exit (range 15) 2841 | -9/Materials | Identified exit to Mines 2841 | -9/Materials | Identified exit to Storage 3565 | -9/Materials | Discovered new exit (range 9) 3717 | -9/Materials | Build established: Scavenger-Mutant 4053 | -9/Materials | Discovered new exit (range 15) 4173 | -9/Materials | Central database locked down 4409 | -9/Materials | Build established: Mutant 4984 | -9/Materials | Build established: Scavenger-Mutant 5012 | -9/Materials | First assault squad dispatched 5333 | -9/Materials | Repaired Lgt. Treads 5360 | -9/Materials | Repaired Lgt. Cannon 5397 | -9/Materials | Entered Storage 6434 | -9/Storage | Used back door to open Recycling access 6434 | -9/Storage | Discovered new exit (range 5) 6525 | -9/Storage | Build established: Mutant 6973 | -9/Storage | Discovered new exit (range 9) 6997 | -9/Storage | First assault squad dispatched 7045 | -9/Storage | Destroyed 9 combat bots 7115 | -9/Storage | Met a pair of Derelict thieves 7171 | -9/Storage | Destroyed 7 combat bots 7539 | -9/Storage | Entered Recycling 7539 | -9/Recycling | Accompanied by 2 allies 8355 | -9/Recycling | Discovered new exit (range 15) 9330 | -9/Recycling | Scanned before Scraplab entrance 9363 | -9/Recycling | Entered Scraplab 9382 | -9/Recycling | Discovered new exit (range 2) 9385 | -9/Recycling | Entered Scraptown 9385 | -9/Scraptown | System corruption cleaned by C-Scrubber 9980 | -9/Scraptown | Visited CPS Storage 10041 | -9/Scraptown | Visited SPCMW 10204 | -9/Scraptown | Visited Cyclists 10291 | -9/Scraptown | Visited TADAMA 10726 | -9/Scraptown | Visited Scrapoid Research Area 10786 | -9/Scraptown | Visited Shadow of the Wyrm 10856 | -9/Scraptown | Discovered new exit (range 11) 11252 | -9/Scraptown | Visited Fellowship of the Rings 11463 | -9/Scraptown | Visited UFD Registry 11463 | -9/Scraptown | Registered with UFD as "Fissionhead" 11525 | -9/Scraptown | Visited Derelict Rescue Squad 11583 | -9/Scraptown | Visited LU-1G1's Boring Crew 11806 | -9/Scraptown | Visited Junk Repository 12257 | -9/Scraptown | Visited Analyses Database 12320 | -9/Scraptown | Visited Cartography Club 12346 | -9/Scraptown | Released all parts (9) 12373 | -9/Scraptown | Found Surveybot 17 Chip 12402 | -9/Scraptown | Learned location of Proximity Caves (-4) 12402 | -9/Scraptown | Learned location of Hub_04(d) (-4) 12402 | -9/Scraptown | Learned 12 Factory zone layouts 12402 | -9/Scraptown | Learned 24 Factory zone layouts 12402 | -9/Scraptown | Learned 8 Research zone layouts 12402 | -9/Scraptown | Learned 20 Upper Caves zone layouts 12402 | -9/Scraptown | Learned 16 Proximity Caves zone layouts 12402 | -9/Scraptown | Learned Research emergency access door positions 12402 | -9/Scraptown | Learned location of 3 exits from Lower Caves 12402 | -9/Scraptown | Learned location of 1 exit from Upper Caves 12402 | -9/Scraptown | Identified exit to Factory 12418 | -9/Scraptown | Found Deep Structural Scanner 12446 | -9/Scraptown | Visited Junk Repository 12827 | -9/Scraptown | Entered Cyclist Reading Room 13008 | -9/Scraptown | Visited Scrap Suit Storage 13037 | -9/Scraptown | Visited A0-MCA Data Center 13039 | -9/Scraptown | Given an S rating by A0-MCA 13041 | -9/Scraptown | Found Prototype Processor 13041 | -9/Scraptown | Identified Expert System 13044 | -9/Scraptown | Found A0-MCA's Component Scanner 13105 | -9/Scraptown | Visited Infowarlord's Domain 14042 | -9/Scraptown | Found Exp. Sensor Array 14160 | -9/Scraptown | Entered Factory 14160 | -6/Factory | Evolved 6 slots: Power x1, Propulsion x3, Utility x2 14161 | -6/Factory | Identified exit to Factory 14161 | -6/Factory | Identified exit to Lower Caves 15071 | -6/Factory | Build established: Scavenger-Mutant 15116 | -6/Factory | Repaired Broken Ion Burst Cannon 15149 | -6/Factory | Repaired Imp. Treads 16062 | -6/Factory | Fabricated Ion Burst Cannon? 16638 | -6/Factory | Found Hvy. Insulated Plating 16696 | -6/Factory | Build established: Mutant 17297 | -6/Factory | Entered Lower Caves 17298 | -6/Lower Caves | Identified exit to Lower Caves 17310 | -6/Lower Caves | Spotted B-75 Beast 17382 | -6/Lower Caves | Attracted the attention of an 0b10 checkpoint 17745 | -6/Lower Caves | Learned location of Extension (-4) 17866 | -6/Lower Caves | Encountered a Warlord checkpoint 17969 | -6/Lower Caves | Entered another Lower Caves area 17970 | -6/Lower Caves | Identified exit to Zion 18990 | -6/Lower Caves | Learned 8 Research zone layouts 18990 | -6/Lower Caves | Learned Extension trap positions 18990 | -6/Lower Caves | Learned Armory trap positions 18990 | -6/Lower Caves | Learned Research emergency access door positions 18990 | -6/Lower Caves | Learned Factory stockpile data 18990 | -6/Lower Caves | Learned Extension garrison access intel 19470 | -6/Lower Caves | Entered Zion 19562 | -6/Zion | Build established: Derelict-Mutant 19575 | -6/Zion | System corruption cleaned by Quarantine Array 19639 | -6/Zion | Found CR-A16's Pointy Stick 19852 | -6/Zion | Gained Derelict followers 20217 | -6/Zion | Found GAL Module 20655 | -6/Zion | Turned away by Imprinter 20850 | -6/Zion | Build established: Mutant 21380 | -6/Zion | Discovered new exit (range 15) 21530 | -6/Zion | Entered Proximity Caves 21530 | -5/Proximity Caves | Accompanied by 2 allies 21865 | -5/Proximity Caves | Entered Factory 21865 | -5/Factory | Accompanied by 1 ally 21865 | -5/Factory | Evolved 2 slots: Utility x1, Weapon x1 22736 | -5/Factory | Garrison activated, responded to threat 22779 | -5/Factory | System corruption reached 10% 22958 | -5/Factory | Lost 4 parts (1p1n1u1w) 23139 | -5/Factory | Build established: Scavenger-Gunner 23427 | -5/Factory | Identified exit to Upper Caves 23665 | -5/Factory | First assault squad dispatched 23727 | -5/Factory | Fabricated Lrn. Missile Launcher? 23757 | -5/Factory | Core integrity fell below 50% 23811 | -5/Factory | Lost 4 parts (1p1n1u1w) 23888 | -5/Factory | Entered Upper Caves 23889 | -5/Upper Caves | Identified exit to Upper Caves 24627 | -5/Upper Caves | Learned Factory emergency access door positions 24701 | -5/Upper Caves | Attracted the attention of an 0b10 checkpoint 24863 | -5/Upper Caves | Entered another Upper Caves area 24863 | -5/Upper Caves | Discovered new exit (range 9) 25089 | -5/Upper Caves | Learned location of Armory (-3) 25163 | -5/Upper Caves | Build established: Scavenger-Skirmisher 25337 | -5/Upper Caves | Learned Extension emergency access door positions 25337 | -5/Upper Caves | Learned Factory security intel 25337 | -5/Upper Caves | Learned Research garrison access intel 25801 | -5/Upper Caves | Discovered new exit (range 11) 25917 | -5/Upper Caves | Entered Zhirov 25920 | -5/Zhirov | Discovered new exit (range 3) 25954 | -5/Zhirov | Met Zhirov 25992 | -5/Zhirov | Learned location of Quarantine (-2) 25992 | -5/Zhirov | Learned location of Testing (-3) 25992 | -5/Zhirov | Learned location of Command (-1) 26011 | -5/Zhirov | Zhirov requested help retrieving the SGEMP Prototype 26040 | -5/Zhirov | Found Alien Artifact 26040 | -5/Zhirov | Identified Integrated Dissipator 26040 | -5/Zhirov | Installed Integrated Dissipator, increased core heat dissipation (+20) 26066 | -5/Zhirov | Found Alien Artifact 26086 | -5/Zhirov | Revealed the true nature of CR-A16's Pointy Stick 26202 | -5/Zhirov | Build established: Scavenger-Mutant 26228 | -5/Zhirov | Entered Proximity Caves 26504 | -4/Proximity Caves | Build established: Scavenger-Skirmisher 26516 | -4/Proximity Caves | Learned Research stockpile data 26726 | -4/Proximity Caves | Discovered new exit (range 9) 26812 | -4/Proximity Caves | Spotted B-86 Titan 26871 | -4/Proximity Caves | Destroyed B-86 Titan 26900 | -4/Proximity Caves | Lost 4 parts (2n2u) 27037 | -4/Proximity Caves | Entered Factory 27037 | -4/Factory | Evolved 2 slots: Utility x2 27038 | -4/Factory | Identified exit to Research 27120 | -4/Factory | Build established: Scavenger-Mutant 27295 | -4/Factory | Destroyed 9 combat bots 27296 | -4/Factory | Lost 3 parts (2n1w) 27606 | -4/Factory | System corruption reached 10% 27684 | -4/Factory | Discovered new exit (range 15) 27702 | -4/Factory | Discovered new exit (range 16) 27945 | -4/Factory | Identified exit to Extension 27946 | -4/Factory | Entered Extension 27947 | -4/Extension | Loaded intel: 19 trap records 28346 | -4/Extension | Disrupted transfer network 28503 | -4/Extension | Build established: Scavenger-Gunner 28782 | -4/Extension | Rescued a captive Derelict 28783 | -4/Extension | Rescued a captive Derelict 29065 | -4/Extension | Found Launcher Loader 29416 | -4/Extension | Discovered exit to Research (range 17) 29417 | -4/Extension | Spotted B-86 Titan 29430 | -4/Extension | Allies destroyed B-86 Titan 29471 | -4/Extension | Lost 4 allies 29488 | -4/Extension | Rescued a captive Derelict 29488 | -4/Extension | Rescued a captive Derelict 29648 | -4/Extension | Rescued a captive Derelict 29696 | -4/Extension | First assault squad dispatched 29709 | -4/Extension | Rescued a captive Derelict 29710 | -4/Extension | Rescued a captive Derelict 29763 | -4/Extension | Energy Cycler disabled 29767 | -4/Extension | Rescued a captive Derelict 29772 | -4/Extension | Rescued a captive Derelict 29774 | -4/Extension | Rescued A7 29790 | -4/Extension | Lost 4 allies 30025 | -4/Extension | Discovered exit to Research (range 10) 30028 | -4/Extension | Discovered new exit (range 6) 30068 | -4/Extension | Identified exit to Cetus 30071 | -4/Extension | Entered Cetus 30071 | -4/Cetus | Accompanied by 11 allies (A7) 30076 | -4/Cetus | Acquired a Cetus Manufacturing Module code from A7 30100 | -4/Cetus | Spotted Cetus Guard 30100 | -4/Cetus | Spotted Cetus Guard 30101 | -4/Cetus | Spotted Cetus Guard 30103 | -4/Cetus | Spotted Cetus Guard 30105 | -4/Cetus | Destroyed Cetus Guard 30113 | -4/Cetus | Allies destroyed Cetus Guard 30115 | -4/Cetus | Destroyed Cetus Guard 30118 | -4/Cetus | Destroyed Cetus Guard 30214 | -4/Cetus | System corruption reached 30% 30303 | -4/Cetus | Started Cetus Manufacturing Module 30328 | -4/Cetus | Manufactured an Enhanced Grunt 30328 | -4/Cetus | Escorted A7 to Cetus Mainframe 30353 | -4/Cetus | Manufactured an Enhanced Grunt 30378 | -4/Cetus | Manufactured an Enhanced Grunt 30403 | -4/Cetus | Manufactured an Enhanced Grunt 30428 | -4/Cetus | Manufactured an Enhanced Grunt 30451 | -4/Cetus | Build established: Scavenger-Tank 30742 | -4/Cetus | Discovered new exit (range 16) 30769 | -4/Cetus | Spotted Cetus Guard 30769 | -4/Cetus | Spotted Cetus Guard 30771 | -4/Cetus | Spotted Cetus Guard 30771 | -4/Cetus | Spotted Cetus Guard 30778 | -4/Cetus | Destroyed Cetus Guard 30783 | -4/Cetus | Destroyed Cetus Guard 30785 | -4/Cetus | Allies destroyed Cetus Guard 30789 | -4/Cetus | Allies destroyed Cetus Guard 30800 | -4/Cetus | Discovered exit to Research (range 16) 30808 | -4/Cetus | Met Revision 17 30821 | -4/Cetus | Security sweep announced 31068 | -4/Cetus | Identified exit to Archives 31079 | -4/Cetus | Entered Archives 31079 | -4/Archives | Accompanied by 8 allies (A7) 31084 | -4/Archives | Received a hacking code to weaken MAIN.C 31150 | -4/Archives | Lost 5 allies 31213 | -4/Archives | Discovered exit to Research (range 16) 31867 | -4/Archives | Discovered new exit (range 13) 31938 | -4/Archives | Discovered new exit (range 17) 31962 | -4/Archives | Identified exit to Hub_04(d) 31964 | -4/Archives | Entered Hub_04(d) 31964 | -4/Hub_04(d) | Accompanied by 2 allies 32046 | -4/Hub_04(d) | Found Quantum Capacitor 32241 | -4/Hub_04(d) | Build established: Scavenger-Skirmisher 32504 | -4/Hub_04(d) | Discovered exit to Research (range 13) 32698 | -4/Hub_04(d) | Network Hub disabled 32739 | -4/Hub_04(d) | Entered Research 32739 | -3/Research | Evolved 2 slots: Utility x2 32740 | -3/Research | Identified exit to Armory 32741 | -3/Research | Identified exit to Research 32741 | -3/Research | Identified exit to Testing 32744 | -3/Research | Loaded intel: 4 garrison access locations 32939 | -3/Research | Revision forces began assault on 0b10 32965 | -3/Research | Met up with Revision 17++ 32999 | -3/Research | Lost 4 allies 33188 | -3/Research | Build established: Scavenger-Tank 33208 | -3/Research | Found Unknown Launcher 33208 | -3/Research | Identified Gamma Bomb Array 33434 | -3/Research | Discovered exit to Research (range 9) 33439 | -3/Research | Research terminal network offline 33626 | -3/Research | Build established: Scavenger-Skirmisher 33892 | -3/Research | Lost 4 allies 33957 | -3/Research | Build established: Scavenger-Tank 34195 | -3/Research | Found Fusion Bomb Launcher 34226 | -3/Research | Spotted B-86 Titan 34413 | -3/Research | Destroyed B-86 Titan 34627 | -3/Research | System corruption reached 10% 34729 | -3/Research | Fabricated Centrium Heavy Treads (x1) 34823 | -3/Research | Spotted Striker 34841 | -3/Research | Fabricated Centrium Heavy Treads (x1) 35046 | -3/Research | Entered Testing 35166 | -3/Testing | Found Prototype Energy Gun 35166 | -3/Testing | Identified Hyp. EM Gauss Rifle 35208 | -3/Testing | Found Prototype Device 35208 | -3/Testing | Identified Exp. Focal Shield 35828 | -3/Testing | Found Prototype Energy Cannon 35947 | -3/Testing | Spotted Striker 35948 | -3/Testing | Destroyed Striker 36052 | -3/Testing | Spotted Striker 36072 | -3/Testing | Spotted Alpha 7 36074 | -3/Testing | Destroyed Striker 36141 | -3/Testing | Destroyed Alpha 7 36150 | -3/Testing | Found Prototype Processor 36150 | -3/Testing | Identified Exp. Target Analyzer 36153 | -3/Testing | Found Prototype Processor 36153 | -3/Testing | Identified Exp. Targeting Computer 36159 | -3/Testing | Found Prototype Device 36159 | -3/Testing | Identified Exp. ECM Suite 36209 | -3/Testing | Stole the SGEMP Prototype 36883 | -3/Testing | Found Prototype Energy Gun 36883 | -3/Testing | Identified Warp Gun 36908 | -3/Testing | Spotted PP-JLQ4YFXF0R 36910 | -3/Testing | System corruption reached 30% 36918 | -3/Testing | Destroyed PP-JLQ4YFXF0R 36932 | -3/Testing | Found Exp. Target Analyzer 37287 | -3/Testing | Identified Potential Cannon 37372 | -3/Testing | Fabricated Centrium Heavy Treads? 37375 | -3/Testing | Destroyed 8 combat bots 37570 | -3/Testing | Discovered exit to Research (range 15) 37596 | -3/Testing | Entered Research 37596 | -2/Research | Evolved 2 slots: Utility x1, Weapon x1 38300 | -2/Research | Cargo convoy interrupted 38346 | -2/Research | First assault squad dispatched 38786 | -2/Research | Discovered new exit (range 11) 38805 | -2/Research | Identified exit to Quarantine 38806 | -2/Research | Entered Quarantine 38994 | -2/Quarantine | Found Alien Impact Weapon 39051 | -2/Quarantine | Identified Core Stripper 39330 | -2/Quarantine | Discovered new exit (range 7) 39474 | -2/Quarantine | Repaired Hyp. Railgun 39542 | -2/Quarantine | Repaired Hyp. Railgun 39651 | -2/Quarantine | Repaired Centrium Medium Armor Plating 39710 | -2/Quarantine | Repaired Centrium Medium Armor Plating? 39756 | -2/Quarantine | Repaired Adv. KE Penetrator? 39857 | -2/Quarantine | Repaired Centrium Heavy Treads 39889 | -2/Quarantine | Repaired Broken Exp. Cooling System 39982 | -2/Quarantine | Repaired Broken Adv. KE Penetrator 40114 | -2/Quarantine | Repaired Graviton Reactor? 40410 | -2/Quarantine | Found Alien Artifact 40410 | -2/Quarantine | Identified Dimensional Node Initializer 40410 | -2/Quarantine | Initialized slip node 40413 | -2/Quarantine | Identified Transdimensional Reconstructor 40413 | -2/Quarantine | Warped through subspace to slip node 40556 | -2/Quarantine | First assault squad dispatched 40897 | -2/Quarantine | Found Transdimensional Reconstructor 41124 | -2/Quarantine | Spotted Alpha 7 41136 | -2/Quarantine | Destroyed 13 combat bots 41302 | -2/Quarantine | Found Alien Artifact 41302 | -2/Quarantine | Identified Phase Armor 41414 | -2/Quarantine | Destroyed Alpha 7 41547 | -2/Quarantine | Spotted Fortress 41553 | -2/Quarantine | Destroyed Fortress 41568 | -2/Quarantine | Found Prototype Device 41568 | -2/Quarantine | Identified Exp. Force Field 41668 | -2/Quarantine | Found Prototype Protection 41668 | -2/Quarantine | Identified Centrium Heavy Armor Plating 41781 | -2/Quarantine | Discovered new exit (range 6) 41787 | -2/Quarantine | Identified exit to Section 7 41789 | -2/Quarantine | Entered Section 7 42077 | -2/Section 7 | System corruption reached 10% 42084 | -2/Section 7 | First assault squad dispatched 42226 | -2/Section 7 | Destroyed 7 combat bots 42244 | -2/Section 7 | Spotted B-90 Cyclops 42345 | -2/Section 7 | Identified exit to Access 42754 | -2/Section 7 | Destroyed B-90 Cyclops 42889 | -2/Section 7 | Repaired Centrium Heavy Armor Plating? 42956 | -2/Section 7 | Found Prototype Launcher 42956 | -2/Section 7 | Identified Tactical Quantum Warhead 43182 | -2/Section 7 | Build established: Skirmisher 43350 | -2/Section 7 | High security lockdown imminent 43380 | -2/Section 7 | Found Integrated Dissipator 43380 | -2/Section 7 | Installed Integrated Dissipator, increased core heat dissipation (+20) 43408 | -2/Section 7 | Entered Access 43408 | -1/Access | Evolved 2 slots: Power x1, Utility x1 43409 | -1/Access | Delivered the SGEMP Prototype to Zhirov 43409 | -1/Access | Zhirov transferred Access data 43410 | -1/Access | Loaded intel: 119 machine locations 43410 | -1/Access | Loaded intel: 93 trap records 43410 | -1/Access | Identified exit to Surface 43410 | -1/Access | Discovered exit to Surface (range 221) 43410 | -1/Access | Identified exit to Command 43410 | -1/Access | Discovered exit to Command (range 136) 43627 | -1/Access | Build established: Gunner 43765 | -1/Access | Zhirov warped through subspace 43973 | -1/Access | Entered Command 44367 | -1/Command | Spotted Combat Programmer 44368 | -1/Command | Spotted Combat Programmer 44381 | -1/Command | System corruption reached 10% 44381 | -1/Command | Destroyed Combat Programmer 44402 | -1/Command | Destroyed Combat Programmer 44406 | -1/Command | Spotted M Guard 44407 | -1/Command | Spotted M Guard 44421 | -1/Command | Destroyed M Guard 44430 | -1/Command | Destroyed M Guard 44430 | -1/Command | All MAIN.C guards destroyed 44435 | -1/Command | Found Prototype Reactor 44435 | -1/Command | Identified Zero-point Reactor 44442 | -1/Command | Found Prototype Protection 44442 | -1/Command | Identified Hvy. Regenerative Plating 44449 | -1/Command | Found Prototype Special Weapon 44450 | -1/Command | Identified Exp. Remote Datajack 44465 | -1/Command | Found Hvy. Regenerative Plating 44471 | -1/Command | Found Zero-point Reactor 44543 | -1/Command | Found Prototype Launcher 44679 | -1/Command | Met MAIN.C 44679 | -1/Command | Hacked MAIN.C using A7's code 44727 | -1/Command | 0b10 Conduit disabled 44754 | -1/Command | System corruption reached 30% 44811 | -1/Command | Destroyed MAIN.C Shell 44812 | -1/Command | MAIN.C activated Command garrisons 44817 | -1/Command | Zhirov used SGEMP to disable MAIN.C 45103 | -1/Command | Identified Ragnarok Missile Launcher 45103 | -1/Command | Discovered exit to Surface (range 46) 45103 | -1/Command | Discovered exit to Surface (range 103) 45103 | -1/Command | Extracted map data and part IDs from MAIN.C's data core 45230 | -1/Command | Found Exp. System Purifier 45561 | -1/Command | Found Omega Cannon 45575 | -1/Command | Found Exp. Force Field 45584 | -1/Command | Found Vortex Chain Reactor 45590 | -1/Command | Found Vortex Chain Reactor 47767 | -1/Command | Phase Generator disabled 48523 | -1/Command | Crushed by falling debris 48541 | -1/Command | Crushed by falling debris 48567 | -1/Command | Discovered new exit (range 7) 48572 | -1/Command | Lost 4 parts (1p3u) 48574 | -1/Command | Crushed by falling debris 48577 | -1/Command | Entered Access_0 48577 | -1/Access_0 | Warped through subspace to slip node 48577 | -1/Access_0 | Discovered exit to Surface (range 8) 48589 | *** | Escaped! Last Messages --------------- 48541_ System corrupted by crushing effect (+4). 48541_ Zero-point Reactor destroyed. 48541_ System corrupted by crushing effect (+1). 48542_ The unstable cave ceiling collapses. 48545_ System corrupted: Matter fused (-9). 48545_ The unstable cave ceiling collapses. 48567_ EXIT=FOUND 48568_ N5J:O WZOQDQJ>

48574_ Crushed by falling debris. 48574_ Hyp. Railgun destroyed. 48574_ System corrupted by crushing effect (+4). 48575_ The unstable cave ceiling collapses. LOCATION=UNKNOWN AMBIENT_HEAT=-20 GOAL=ESCAPE 48577_ Warped through subspace, drawn to slip node. 48577_ EXIT=FOUND: SURFACE 48584_ EFCDLB5A%3C:ICRZ%PA,0 [Achievement: I Think I Know What's Going On] Map ----- +----------------------------------------------------+ | | | | | | | | | | | | | | | | | | | | | | | | | | | | | | | | | ?????????????????????????????????????????????????? | | ?????????????????????????????????????????????????? | | ?????????????????????????????????????????????????? | | ?????????????????????????????????????????????????? | | ?????????????????????????????????????????????????? | | ?????????????????????????????????????????????????? | | ????????????????????????###??????????????????????? | | ???????????????????????## ##?????????????????????? | | ???????????????????????# #?????????????????????? | | ???????????????????????# @ #?????????????????????? | | ??????????????????????## #?????????????????????? | | ??????????????????????# #?????????????????????? | | ??????????????????????# ##?????????????????????? | | ??????????????????????## #?????????????????????? | | ??????????????????????# #?????????????????????? | | ??????????????????????# ##?????????????????????? | | ??????????????????????# < #?????????????????????? | | ??????????????????????# ##?????????????????????? | | ??????????????????????## #??????????????????????? | | ???????????????????????####??????????????????????? | | ?????????????????????????????????????????????????? | | ?????????????????????????????????????????????????? | | ?????????????????????????????????????????????????? | | ?????????????????????????????????????????????????? | | ?????????????????????????????????????????????????? | | ?????????????????????????????????????????????????? | | ?????????????????????????????????????????????????? | | ?????????????????????????????????????????????????? | | ?????????????????????????????????????????????????? | | ?????????????????????????????????????????????????? | | ?????????????????????????????????????????????????? | | ?????????????????????????????????????????????????? | | ?????????????????????????????????????????????????? | | ?????????????????????????????????????????????????? | +----------------------------------------------------+ Best States ------------- Heat Dissipation 197 Energy Generation 85 Energy Capacity 1190 Matter Stores 300 Matter Capacity 300 Sight Range 23 Robot Scan Range 20 Terrain Scan Density 10 ECM Strength 3 Armor Coverage 2400 Resistance: KI 30 Resistance: TH 10 Resistance: EM 30 Utility Shielding 66 Point Defense Rating 240 Weapon Cycling 25 Phase Shifting 5 Evasion (%) 62 Targeting Accuracy 12 Target Analysis 10 Recoil Reduction 6 Energy Filtering 50 Particle Charging 25 Offensive Hacking 24 Defensive Hacking 14 Authchip Count 3 Item Schematics ----------------- Huge Storage Unit | -10/Materials | Hacked Shield Generator | -9/Materials | Scanalyzed Arm. Wheel | -9/Materials | Scanalyzed Insulated Plating | -9/Materials | Scanalyzed Imp. Terrain Scanner | -9/Recycling | Hacked Matter Filter | -9/Recycling | Hacked Med. Armor Plating | -9/Recycling | Hacked Rocket Launcher | -9/Recycling | Hacked Cld. Plasma Cannon | -6/Factory | Scanalyzed Ion Burst Cannon | -6/Factory | Scanalyzed Variable Charge Gun | -6/Zion | Archive Lrn. Missile Launcher | -6/Zion | Archive Force Field | -6/Zion | Archive Field Propulsion Drive | -6/Zion | Archive Adv. Transmission Jammer | -6/Zion | Archive Lgt. Angular Momentum Engine | -6/Zion | Archive Antigrav System | -6/Zion | Archive Thermic Laser | -6/Zion | Archive Imp. Weapon Cycler | -6/Zion | Archive Fusion Compressor | -6/Zion | Archive Imp. Component Analysis Suite | -6/Zion | Archive Adv. Melee Analysis Suite | -6/Zion | Archive Neutrino Core | -6/Zion | Archive Dispersion Rifle | -6/Zion | Archive Assault Drone Bay | -5/Zhirov | Free Exp. Heat Sink | -5/Zhirov | Free Exp. Optical Array | -5/Zhirov | Free Imp. Arc Thrower | -5/Zhirov | Free Centrium Heavy Treads | -3/Research | Scanalyzed Adv. KE Penetrator | -3/Research | Scanalyzed Centrium Medium Armor Plating | -3/Research | Scanalyzed Enh. Coil Gun | -3/Testing | Archive Imp. KE Penetrator | -3/Testing | Archive Com. Particle Reactor | -3/Testing | Archive Adv. Dynamic Insulation System | -3/Testing | Archive Hyp. Railgun | -3/Testing | Scanalyzed Imp. Diametric Drive | -2/Quarantine | Archive Centrium Greatsword | -2/Quarantine | Archive Hvy. Hardcell Cannon | -2/Quarantine | Archive Robot Schematics ------------------ E-15 Imp | -6/Zion | Archive T-07 Excavator | -6/Zion | Archive A-15 Conveyor | -6/Zion | Archive G-73 Enforcer | -6/Zion | Archive Fabricated ------------ Ion Burst Cannon | x1 | -6/Factory | Authchip Lrn. Missile Launcher | x1 | -5/Factory Centrium Heavy Treads | x1 | -3/Research | Authchip Centrium Heavy Treads | x1 | -3/Research | Authchip Centrium Heavy Treads | x1 | -3/Testing Alien Tech Used ----------------- Integrated Dissipator Core Stripper Dimensional Node Initializer Transdimensional Reconstructor Phase Armor Achievements -------------- I Think I Know What's Going On Sunderer Challenges ------------ None Game ------ Seed IonTacticalMaul Manual? 0 Play Time 09:30:16 Cumulative 118.3 hours Start 2025.04.20 @ 22:23:39 End 2025.04.23 @ 04:32:58 Sessions 84 Manual Loads 0 Difficulty Rogue Special Mode None Game No. 16 Rogue 9 Adventurer 4 Explorer 3 Win Type 0 Total 11 Types 9/1/1/0/0/0/0/0/0 Lore% 51 Gallery% 60 Achievement% 61 Wizard Run 0 Options --------- Layout 0 ASCII 0 Keyboard 0 Movement Mouse Keybinds 0 Fullscreen 1 Font 18/TerminusBold Map View 76x50 Zoom Use 0% Tactical HUD 1 Map Filters NONE Filters NONE Steam 1 RUN: c83fde3c-49c3-4664-be57-a5b8888bd394